bitfinex/quotes_BTCUSD_20250922
["timestamp","ask_amount","ask_price","bid_price","bid_amount"]
[1758506759733,0.86105931,114680.0,114670.0,0.00314133]
[1758506759935,1.20396317,114680.0,114670.0,0.00314133]
[1758506760730,0.57705931,114680.0,114670.0,0.00314133]
[1758506760968,1.14835529,114680.0,114670.0,0.00828133]
[1758506761093,1.17395529,114680.0,114670.0,0.00517133]
[1758506761295,1.17692529,114680.0,114670.0,0.00314133]
[1758506763403,0.55002143,114680.0,114670.0,0.00314133]
[1758506763622,1.17696529,114680.0,114670.0,0.00314133]
[1758506764803,1.20319586,114680.0,114670.0,0.00314133]
[1758506765072,1.20315586,114680.0,114670.0,0.00314133]
[1758506765308,0.91915586,114680.0,114670.0,0.00314133]
[1758506765518,1.20315586,114680.0,114670.0,0.00314133]
[1758506766568,0.91915586,114680.0,114670.0,0.00314133]
[1758506766965,1.20315586,114680.0,114670.0,0.00314133]
[1758506767169,0.37328368,114680.0,114670.0,0.00828133]
[1758506767384,0.29105311,114680.0,114670.0,0.30795588]
[1758506767587,0.29105311,114680.0,114670.0,0.33875294]
[1758506767796,0.29105783,114680.0,114670.0,0.33875294]
[1758506768010,0.29005783,114680.0,114670.0,0.33875294]
[1758506768356,0.46445615,114680.0,114670.0,0.16133941]
[1758506768554,0.46645615,114680.0,114670.0,0.33575294]
[1758506768764,0.29205783,114680.0,114670.0,0.33575294]
[1758506769179,0.29005783,114680.0,114670.0,0.34275294]
[1758506769374,0.46445615,114680.0,114670.0,0.34275294]
[1758506769576,0.29005783,114680.0,114670.0,0.34275294]
[1758506769981,0.46445615,114680.0,114670.0,0.34275294]
[1758506770552,0.46445615,114680.0,114670.0,0.29451453]
[1758506770907,0.83332001,114680.0,114670.0,0.00917133]
[1758506771061,0.83332001,114680.0,114670.0,0.01017133]
[1758506771897,1.17332001,114680.0,114670.0,0.01017133]
[1758506772291,1.14736001,114680.0,114670.0,0.18751486]
[1758506772487,1.14736001,114680.0,114670.0,0.21076486]
[1758506772692,1.14736001,114680.0,114670.0,0.23976489]
[1758506773094,0.97296169,114680.0,114670.0,0.23976489]
[1758506773314,1.14736001,114680.0,114670.0,0.23976489]
[1758506773522,1.14736001,114680.0,114670.0,0.03635133]
[1758506773961,1.14938001,114680.0,114670.0,0.01310133]
[1758506774180,1.14736001,114680.0,114670.0,0.01310133]
[1758506775685,0.52045615,114680.0,114670.0,0.21076486]
[1758506775881,0.97292169,114680.0,114670.0,0.21076486]
[1758506776101,0.97292169,114680.0,114670.0,0.24928408]
[1758506776306,1.14732001,114680.0,114670.0,0.21076486]
[1758506776508,1.14732001,114680.0,114670.0,0.01310133]
[1758506776670,1.17328001,114680.0,114670.0,0.01017133]
[1758506777337,1.17126001,114680.0,114670.0,0.01017133]
[1758506777477,1.17328001,114680.0,114670.0,0.01017133]
[1758506777677,1.17126001,114680.0,114670.0,0.01017133]
[1758506777877,1.17328001,114680.0,114670.0,0.01017133]
[1758506778709,1.25174273,114680.0,114670.0,0.00814133]
[1758506779362,1.25174273,114680.0,114670.0,0.01018133]
[1758506781164,1.25469273,114680.0,114670.0,0.00814133]
[1758506781750,1.25174273,114680.0,114670.0,0.00814133]
[1758506782379,1.25174273,114680.0,114670.0,0.01018133]
[1758506782792,1.25174273,114680.0,114670.0,0.00814133]
[1758506783159,1.27916359,114680.0,114670.0,0.00814133]
[1758506783567,1.26284966,114680.0,114670.0,0.00814133]
[1758506784010,2.18907576,114680.0,114670.0,1e-08]
[1758506784234,0.47442874,114660.0,114650.0,0.0002]
[1758506784397,1.68188142,114660.0,114650.0,0.0002]
[1758506784605,2.35079142,114660.0,114650.0,0.0002]
[1758506784967,2.34473359,114660.0,114650.0,0.0002]
[1758506785180,2.35084681,114660.0,114650.0,0.0002]
[1758506785645,2.35126885,114660.0,114650.0,0.0002]
[1758506785898,2.35626885,114660.0,114650.0,0.0002]
[1758506787193,2.37294629,114660.0,114650.0,0.0002]
[1758506788532,2.37294629,114660.0,114610.0,0.18342845]
[1758506788533,0.17448961,114620.0,114610.0,0.0002]
[1758506788780,1.35799145,114620.0,114610.0,0.00034065]
[1758506788987,1.38639145,114620.0,114610.0,0.00034065]
[1758506789188,1.68639145,114620.0,114610.0,0.00034065]
[1758506789762,2.35263488,114620.0,114610.0,0.00034065]
[1758506789969,2.06871488,114620.0,114610.0,0.00034065]
[1758506790165,2.35263488,114620.0,114610.0,0.00034065]
[1758506790366,2.35263488,114620.0,114610.0,0.00334065]
[1758506790553,2.08239633,114620.0,114610.0,0.01934065]
[1758506790747,2.08239633,114620.0,114610.0,0.00034065]
[1758506790956,2.36631633,114620.0,114610.0,0.00034065]
[1758506791344,2.36731633,114620.0,114610.0,0.00634065]
[1758506791534,2.36731633,114620.0,114610.0,0.00034065]
[1758506791776,1.35736771,114620.0,114610.0,0.00034065]
[1758506791982,2.04291633,114620.0,114610.0,0.00239065]
[1758506792187,2.06607633,114620.0,114610.0,0.00239065]
[1758506792391,1.78215633,114620.0,114610.0,0.00439065]
[1758506792521,2.06407633,114620.0,114610.0,0.00439065]
[1758506792930,2.06607633,114620.0,114610.0,0.00439065]
[1758506793410,2.05239488,114620.0,114610.0,0.00439065]
[1758506793529,2.05239488,114620.0,114610.0,0.00234065]
[1758506794825,2.05563488,114620.0,114610.0,0.00234065]
[1758506795854,2.06459357,114620.0,114610.0,0.00234065]
[1758506796261,1.65648603,114620.0,114610.0,0.00234065]
[1758506796470,2.04991465,114620.0,114610.0,0.00439065]
[1758506796668,2.04380143,114620.0,114610.0,0.00439065]
[1758506796880,2.07503685,114620.0,114610.0,0.00439065]
[1758506797099,2.07503685,114620.0,114610.0,0.00234065]
[1758506798691,2.07827685,114620.0,114610.0,0.00234065]
[1758506798878,2.37827685,114620.0,114610.0,0.00234065]
[1758506800504,2.67827685,114620.0,114610.0,0.00234065]
[1758506801127,2.39431685,114620.0,114610.0,0.00234065]
[1758506801455,2.67827685,114620.0,114610.0,0.00234065]
[1758506806679,2.39431685,114620.0,114610.0,0.00234065]
[1758506806849,2.67827685,114620.0,114610.0,0.00234065]
[1758506807054,2.39431685,114620.0,114610.0,0.00234065]
[1758506807402,2.41051072,114620.0,114610.0,0.00234065]
[1758506807614,2.69447072,114620.0,114610.0,0.00234065]
[1758506807799,1.9887221,114620.0,114610.0,0.00234065]
[1758506807961,2.67827685,114620.0,114610.0,0.00234065]
[1758506808872,2.69447812,114620.0,114610.0,0.00234065]
[1758506809615,3.07203812,114620.0,114610.0,0.00234065]
[1758506810023,2.78807812,114620.0,114610.0,0.00234065]
[1758506810232,3.07203812,114620.0,114610.0,0.00234065]
[1758506810444,3.07199812,114620.0,114610.0,0.00234065]
[1758506812313,3.07199812,114620.0,114590.0,0.02683]
[1758506812314,0.89630868,114600.0,114590.0,0.02683]
[1758506812536,0.78071675,114600.0,114590.0,0.02729896]
[1758506812687,1.20250537,114600.0,114590.0,0.02934896]
[1758506813030,1.22875325,114600.0,114590.0,0.02934896]
[1758506813554,1.22875325,114600.0,114590.0,0.03034896]
[1758506814578,0.80696463,114600.0,114590.0,0.03434896]
[1758506814790,1.22875325,114600.0,114590.0,0.03434896]
[1758506814972,1.21255198,114600.0,114590.0,0.03434896]
[1758506815223,1.22883026,114600.0,114590.0,0.03434896]
[1758506816402,0.94491026,114600.0,114590.0,0.03434896]
[1758506816562,1.22883026,114600.0,114590.0,0.03434896]
[1758506816757,0.80704164,114600.0,114590.0,0.03434896]
[1758506816979,1.22883026,114600.0,114590.0,0.03434896]
[1758506817198,0.50700164,114600.0,114590.0,0.01045896]
[1758506817428,0.50700164,114600.0,114590.0,0.20992425]
[1758506817651,0.50701828,114600.0,114590.0,0.03538896]
[1758506817882,0.9288069,114600.0,114590.0,0.01045896]
[1758506818087,0.9309269,114600.0,114590.0,0.01045896]
[1758506818438,0.9542269,114600.0,114590.0,0.01045896]
[1758506818801,0.9288069,114600.0,114590.0,0.01045896]
[1758506818979,0.9288069,114600.0,114590.0,0.03538896]
[1758506819180,1.0232069,114600.0,114590.0,0.03538896]
[1758506819985,1.00691198,114600.0,114590.0,0.03538896]
[1758506820174,1.00903198,114600.0,114590.0,0.01045896]
[1758506820381,1.35165124,114600.0,114590.0,0.00546896]
[1758506820590,0.17455053,114580.0,114570.0,0.21115308]
[1758506820801,0.71174404,114580.0,114570.0,0.21324423]
[1758506821003,0.88629457,114580.0,114570.0,0.21324423]
[1758506821427,0.46450595,114580.0,114570.0,0.21324423]
[1758506821634,0.28999518,114580.0,114570.0,0.21324423]
[1758506821846,0.46454571,114580.0,114570.0,0.21324423]
[1758506822448,0.46454571,114580.0,114570.0,0.02995115]
[1758506822868,0.46454571,114580.0,114570.0,0.20851691]
[1758506823198,0.18066346,114580.0,114570.0,0.21751691]
[1758506823402,0.28995293,114580.0,114570.0,0.21751691]
[1758506823637,0.46450346,114580.0,114570.0,0.21751691]
[1758506824160,0.84210346,114580.0,114570.0,0.21751691]
[1758506824820,0.84210346,114580.0,114570.0,0.04295115]
[1758506825276,1.26601208,114580.0,114570.0,0.01509115]
[1758506825486,1.29232208,114580.0,114570.0,0.01314115]
[1758506825688,1.31857568,114580.0,114570.0,0.01314115]
[1758506825908,1.33487349,114580.0,114570.0,0.01314115]
[1758506826067,1.31857568,114580.0,114570.0,0.01314115]
[1758506826293,1.31857568,114580.0,114570.0,0.00914115]
[1758506826457,1.63486967,114580.0,114570.0,0.00014115]
[1758506826666,1.63486967,114580.0,114570.0,0.00114115]
[1758506826888,1.63586967,114580.0,114570.0,0.00114115]
[1758506827242,1.63586967,114580.0,114570.0,0.00014115]
[1758506827452,1.63686967,114580.0,114570.0,0.00014115]
[1758506829543,0.47456576,114570.0,114560.0,0.0002]
[1758506829721,0.10051293,114570.0,114560.0,0.19816804]
[1758506829965,0.38431293,114570.0,114560.0,0.28139917]
[1758506830180,0.38431293,114570.0,114560.0,0.28439917]
[1758506830414,0.10051293,114570.0,114560.0,0.70618779]
[1758506830615,0.10051293,114570.0,114560.0,0.36966884]
[1758506830616,0.38431293,114570.0,114560.0,0.36966884]
[1758506830856,0.10051293,114570.0,114560.0,0.36966884]
[1758506831066,0.38431293,114570.0,114560.0,0.71223633]
[1758506831278,0.10051293,114570.0,114560.0,0.71023633]
[1758506831487,0.38431293,114570.0,114560.0,0.71023633]
[1758506831699,0.38431293,114570.0,114560.0,1.08538823]
[1758506831700,0.10051293,114570.0,114560.0,1.08538823]
[1758506831845,0.38431293,114570.0,114560.0,1.08538823]
[1758506832054,0.38431293,114570.0,114560.0,1.17077758]
[1758506832466,0.38431293,114570.0,114560.0,1.16977758]
[1758506832667,0.38431293,114570.0,114560.0,1.08538823]
[1758506832926,0.38431293,114570.0,114560.0,1.08938823]
[1758506833558,0.38431293,114570.0,114560.0,1.08438823]
[1758506833977,0.38431293,114570.0,114560.0,1.09338823]
[1758506834946,0.10051293,114570.0,114560.0,1.09338823]
[1758506835212,0.10051293,114570.0,114560.0,1.1786579]
[1758506835213,0.28987293,114570.0,114560.0,1.1786579]
[1758506836047,0.28987293,114570.0,114560.0,0.46686671]
[1758506836340,0.97977173,114570.0,114560.0,0.01825704]
[1758506836535,0.98176173,114570.0,114560.0,0.01525704]
[1758506836869,0.98176173,114570.0,114560.0,0.01125704]
[1758506837144,0.98176173,114570.0,114560.0,0.00924704]
[1758506837321,0.98176173,114570.0,114560.0,0.00024704]
[1758506837545,0.9128289,114570.0,114560.0,0.00224704]
[1758506837745,0.49104028,114570.0,114560.0,0.00425704]
[1758506837953,0.9159389,114570.0,114560.0,0.00224704]
[1758506838170,0.9159389,114570.0,114560.0,0.00324704]
[1758506838382,0.9128289,114570.0,114560.0,0.00324704]
[1758506838654,0.83447479,114570.0,114560.0,0.00324704]
[1758506839265,0.83447479,114570.0,114560.0,0.00525704]
[1758506840675,0.83447479,114570.0,114560.0,0.00324704]
[1758506840993,0.86072749,114570.0,114560.0,0.00324704]
[1758506842241,0.85462297,114570.0,114560.0,0.00324704]
[1758506842532,0.86383624,114570.0,114560.0,0.00324704]
[1758506843367,0.51429846,114570.0,114560.0,0.00324704]
[1758506843547,0.57086297,114570.0,114560.0,0.00324704]
[1758506843719,0.82793297,114570.0,114560.0,0.03159704]
[1758506844141,0.82793297,114570.0,114560.0,0.00825704]
[1758506844395,0.54425297,114570.0,114560.0,0.00825704]
[1758506844800,0.82793297,114570.0,114560.0,0.00825704]
[1758506845010,0.48449846,114570.0,114560.0,0.00825704]
[1758506845215,0.20081846,114570.0,114560.0,0.18283804]
[1758506845408,0.48449846,114570.0,114560.0,0.03159704]
[1758506845738,0.57889846,114570.0,114560.0,0.18283804]
[1758506846407,0.29521846,114570.0,114560.0,0.18283804]
[1758506846766,0.58088846,114570.0,114560.0,0.18283804]
[1758506847210,0.58088846,114570.0,114560.0,0.00825704]
[1758506848059,0.60514846,114570.0,114560.0,0.00825704]
[1758506848214,0.60514846,114570.0,114560.0,0.00525704]
[1758506849096,0.57889846,114570.0,114560.0,0.00847704]
[1758506849295,0.57889846,114570.0,114560.0,0.20600804]
[1758506849296,0.57885846,114570.0,114560.0,0.20600804]
[1758506849523,0.4042927,114570.0,114560.0,0.20600804]
[1758506851021,0.37804,114570.0,114560.0,0.20600804]
[1758506851613,0.0944,114570.0,114560.0,0.20600804]
[1758506851821,0.37804,114570.0,114560.0,0.20600804]
[1758506855346,0.55260576,114570.0,114560.0,0.20600804]
[1758506855771,0.55458576,114570.0,114560.0,0.17983804]
[1758506856021,0.84252536,114570.0,114560.0,0.17983804]
[1758506856242,0.84553536,114570.0,114560.0,0.00324704]
[1758506857532,0.87178799,114570.0,114560.0,0.00324704]
[1758506858630,0.95155328,114570.0,114560.0,0.00324704]
[1758506859275,0.60810839,114570.0,114560.0,0.00324704]
[1758506859479,0.95155328,114570.0,114560.0,0.00324704]
[1758506859912,1.25155328,114570.0,114560.0,0.00324704]
[1758506863785,0.96791328,114570.0,114560.0,0.00324704]
[1758506863996,1.24842328,114570.0,114560.0,0.00536704]
[1758506864214,0.97101232,114570.0,114560.0,0.00536704]
[1758506864430,1.25449232,114570.0,114560.0,0.00536704]
[1758506864638,1.25449232,114570.0,114560.0,0.00324704]
[1758506864838,1.25750232,114570.0,114560.0,0.00324704]
[1758506866253,0.96791328,114570.0,114560.0,0.00324704]
[1758506866537,1.25449577,114570.0,114560.0,0.00536704]
[1758506866701,0.97101576,114570.0,114560.0,0.00536704]
[1758506866873,1.25449576,114570.0,114560.0,0.00536704]
[1758506867078,0.97101576,114570.0,114560.0,0.00536704]
[1758506867517,0.62757087,114570.0,114560.0,0.00536704]
[1758506867745,1.25449576,114570.0,114560.0,0.00536704]
[1758506868300,0.91105087,114570.0,114560.0,0.00536704]
[1758506868496,1.25449576,114570.0,114560.0,0.00536704]
[1758506869159,1.25449495,114570.0,114560.0,0.00536704]
[1758506869373,1.25449495,114570.0,114560.0,0.00324704]
[1758506869731,0.91105006,114570.0,114560.0,0.00324704]
[1758506869986,1.25449495,114570.0,114560.0,0.00536704]
[1758506871090,1.25449495,114570.0,114560.0,0.00324704]
[1758506871290,1.25449495,114570.0,114560.0,0.00536704]
[1758506871575,1.25449495,114570.0,114560.0,0.00324704]
[1758506871576,1.25750495,114570.0,114560.0,0.00324704]
[1758506871748,1.25449495,114570.0,114560.0,0.00536704]
[1758506872772,1.25449495,114570.0,114560.0,0.00324704]
[1758506873954,0.97101495,114570.0,114560.0,0.00536704]
[1758506874131,0.90287839,114570.0,114560.0,0.00858704]
[1758506874340,1.25441378,114570.0,114560.0,0.00536704]
[1758506874745,1.25243378,114570.0,114560.0,0.18316804]
[1758506874976,0.12065263,114570.0,114560.0,0.18316804]
[1758506875177,0.12065263,114570.0,114560.0,0.20611804]
[1758506875489,0.40405263,114570.0,114560.0,0.20611804]
[1758506875946,0.0944,114570.0,114560.0,0.20611804]
[1758506876084,0.3778,114570.0,114560.0,0.20611804]
[1758506877103,0.37776,114570.0,114560.0,0.20611804]
[1758506877330,0.37776,114570.0,114560.0,0.24420918]
[1758506878341,0.02624967,114580.0,114570.0,0.54471766]
[1758506878562,0.02624967,114580.0,114570.0,0.65994733]
[1758506878788,0.06893283,114610.0,114600.0,0.17451385]
[1758506878989,0.37853515,114610.0,114600.0,0.17451385]
[1758506879212,0.37853515,114610.0,114600.0,0.17958385]
[1758506879459,0.35229283,114610.0,114600.0,0.20447385]
[1758506879903,0.28336,114610.0,114600.0,0.24324744]
[1758506880114,0.28336,114610.0,114600.0,0.20447385]
[1758506880317,0.28551,114610.0,114600.0,0.17451385]
[1758506880523,0.57612831,114610.0,114600.0,0.17551385]
[1758506880736,0.31265,114610.0,114600.0,0.17551385]
[1758506880939,0.30971,114610.0,114600.0,0.17755385]
[1758506881142,0.30971,114610.0,114600.0,0.17655385]
[1758506881612,0.30971,114610.0,114600.0,0.18051385]
[1758506881841,0.30971,114610.0,114600.0,0.18255385]
[1758506882060,0.28336,114610.0,114600.0,0.24964344]
[1758506882261,0.47208,114620.0,114610.0,0.17450484]
[1758506882476,0.66110113,114620.0,114610.0,0.26181451]
[1758506882687,0.66110113,114620.0,114610.0,0.28973451]
[1758506883531,0.28342113,114620.0,114610.0,0.31988641]
[1758506883652,0.28342113,114620.0,114610.0,0.32188641]
[1758506883849,0.92046309,114650.0,114630.0,0.20462629]
[1758506883850,0.37764,114650.0,114630.0,0.20462629]
[1758506884065,0.00047128,114650.0,114640.0,0.31584248]
[1758506884259,0.00047128,114650.0,114640.0,0.72366624]
[1758506884491,0.00047128,114650.0,114640.0,0.75381814]
[1758506886158,0.00147128,114650.0,114640.0,0.75381814]
[1758506886363,0.00047128,114650.0,114640.0,0.75381814]
[1758506886764,0.00047128,114650.0,114640.0,0.75981814]
[1758506887913,0.00262128,114650.0,114640.0,0.73189814]
[1758506888050,0.00047128,114650.0,114640.0,0.70477624]
[1758506888255,0.00047128,114650.0,114640.0,0.72966624]
[1758506889066,0.00047128,114650.0,114640.0,0.75981814]
[1758506889267,0.00047128,114650.0,114640.0,1.04293814]
[1758506889470,0.00047128,114650.0,114640.0,1.09293814]
[1758506889691,0.00047128,114650.0,114640.0,0.80981814]
[1758506889907,0.00047128,114650.0,114640.0,1.09293814]
[1758506890241,0.00047128,114650.0,114640.0,1.08993814]
[1758506890452,0.00047128,114650.0,114640.0,1.08693814]
[1758506890654,0.00047128,114650.0,114640.0,0.80781814]
[1758506890861,0.00047128,114650.0,114640.0,1.16289523]
[1758506891229,0.00047128,114650.0,114640.0,1.15889523]
[1758506891663,0.00047128,114650.0,114640.0,1.16289523]
[1758506892823,0.00047128,114650.0,114640.0,1.11285523]
[1758506893050,0.00047128,114650.0,114640.0,1.11193523]
[1758506894032,0.00047128,114650.0,114640.0,0.82885523]
[1758506894712,0.00047128,114650.0,114640.0,1.11189523]
[1758506899558,0.00047128,114650.0,114640.0,0.77473333]
[1758506899759,0.00245128,114650.0,114640.0,0.68643366]
[1758506899966,0.02638128,114650.0,114640.0,0.68643366]
[1758506900627,0.02638128,114650.0,114640.0,0.68439366]
[1758506900846,0.02638128,114650.0,114640.0,0.68648366]
[1758506901203,0.00047128,114650.0,114640.0,0.76682441]
[1758506902313,0.00652422,114650.0,114640.0,0.76682441]
[1758506903022,0.00652422,114650.0,114640.0,1.04974441]
[1758506903644,0.00652422,114650.0,114640.0,1.07989631]
[1758506903793,0.00047128,114650.0,114640.0,1.12989631]
[1758506904770,0.10740492,114690.0,114680.0,0.17439832]
[1758506904771,0.09932699,114690.0,114680.0,0.17439832]
[1758506904901,0.07847035,114690.0,114680.0,0.20927821]
[1758506905100,0.10143035,114690.0,114680.0,0.29454788]
[1758506905349,0.10438035,114690.0,114680.0,0.29454788]
[1758506905959,0.03744752,114690.0,114680.0,0.29454788]
[1758506906178,0.04744752,114690.0,114680.0,0.29454788]
[1758506906550,0.03544752,114690.0,114680.0,0.29454788]
[1758506906821,0.03944752,114690.0,114680.0,0.29554788]
[1758506907262,0.04755556,114690.0,114680.0,0.29554788]
[1758506910978,0.04460556,114690.0,114680.0,0.29554788]
[1758506912308,0.04778556,114690.0,114680.0,0.29554788]
[1758506913406,0.04460556,114690.0,114680.0,0.29768788]
[1758506913839,0.32740556,114690.0,114680.0,0.29768788]
[1758506914862,0.32740556,114690.0,114680.0,0.29554788]
[1758506915973,0.32745347,114690.0,114680.0,0.29554788]
[1758506917222,0.32745347,114690.0,114680.0,0.29768788]
[1758506917820,0.32745347,114690.0,114680.0,0.29554788]
[1758506917991,0.33063347,114690.0,114680.0,0.29554788]
[1758506918196,0.32745347,114690.0,114680.0,0.29554788]
[1758506918403,0.32745347,114690.0,114680.0,0.29768788]
[1758506919670,0.50501658,114690.0,114680.0,0.29554788]
[1758506919874,0.33063347,114690.0,114680.0,0.29554788]
[1758506920026,0.32745347,114690.0,114680.0,0.29554788]
[1758506921221,0.32745347,114690.0,114680.0,0.29768788]
[1758506922666,0.32745347,114690.0,114680.0,0.29554788]
[1758506922834,0.32745347,114690.0,114680.0,0.29768788]
[1758506923852,0.32749623,114690.0,114680.0,0.29768788]
[1758506924839,0.32749623,114690.0,114680.0,0.29554788]
[1758506925245,0.32749623,114690.0,114680.0,0.29768788]
[1758506926464,0.30142623,114690.0,114680.0,0.32315788]
[1758506926953,0.01878623,114690.0,114680.0,0.32315788]
[1758506927190,0.01878623,114690.0,114680.0,1.11443453]
[1758506927191,0.01063543,114690.0,114680.0,1.11443453]
[1758506927455,0.27683543,114690.0,114680.0,1.11443453]
[1758506927917,0.27683543,114690.0,114680.0,0.69330978]
[1758506928373,0.29323543,114690.0,114680.0,0.65842989]
[1758506929299,0.01063543,114690.0,114680.0,0.65842989]
[1758506930649,0.01063543,114690.0,114680.0,0.92150635]
[1758506930886,0.01063543,114690.0,114680.0,1.19120635]
[1758506932234,0.01063543,114690.0,114680.0,1.20002124]
[1758506932452,0.01063543,114690.0,114680.0,1.28529091]
[1758506933235,0.01063863,114690.0,114680.0,1.28529091]
[1758506933571,0.00663863,114690.0,114680.0,1.28429091]
[1758506933801,0.00663863,114690.0,114680.0,1.28529091]
[1758506933971,0.00663863,114690.0,114680.0,1.43257091]
[1758506934172,0.00663863,114690.0,114680.0,1.97720737]
[1758506934385,0.45444976,114720.0,114710.0,0.17435271]
[1758506934574,0.45444976,114720.0,114710.0,0.32511833]
[1758506934575,0.54497283,114720.0,114710.0,0.32511833]
[1758506934931,0.57090283,114720.0,114710.0,0.30257833]
[1758506935442,0.50197,114720.0,114710.0,0.29750833]
[1758506935690,0.50515,114720.0,114710.0,0.29750833]
[1758506936896,0.50515,114720.0,114710.0,0.29850833]
[1758506938726,0.67948751,114720.0,114710.0,0.12415562]
[1758506938932,0.50515,114720.0,114710.0,0.29850833]
[1758506939876,0.94256397,114720.0,114710.0,0.17535271]
[1758506940481,0.94256397,114720.0,114710.0,0.001]
[1758506940884,0.94256397,114720.0,114710.0,0.17535271]
[1758506941365,0.76822646,114720.0,114710.0,0.17535271]
[1758506941579,0.50515,114720.0,114710.0,0.17535271]
[1758506941782,0.76822646,114720.0,114710.0,0.17535271]
[1758506942159,0.76822646,114720.0,114710.0,0.21682102]
[1758506942361,0.68573,114720.0,114710.0,0.21894102]
[1758506942872,0.68573,114720.0,114710.0,0.21682102]
[1758506943198,0.68573,114720.0,114710.0,0.17535271]
[1758506944142,0.37736,114720.0,114710.0,0.17747271]
[1758506944342,0.37736,114720.0,114710.0,0.29046238]
[1758506944343,0.65976,114720.0,114710.0,0.29046238]
[1758506944973,0.12817091,114730.0,114720.0,0.17433751]
[1758506945202,0.13026219,114730.0,114720.0,0.17645751]
[1758506945404,0.38591219,114730.0,114720.0,0.2261575]
[1758506945618,0.37718128,114730.0,114720.0,0.2261575]
[1758506945863,0.09482128,114730.0,114720.0,0.2261575]
[1758506946016,0.37718128,114730.0,114720.0,0.2261575]
[1758506946224,0.40594128,114730.0,114720.0,0.2261575]
[1758506947125,0.40789128,114730.0,114720.0,0.2261575]
[1758506948960,0.40594128,114730.0,114720.0,0.2261575]
[1758506949333,0.40789128,114730.0,114720.0,0.2229375]
[1758506950040,0.40594128,114730.0,114720.0,0.2260475]
[1758506950238,0.40807128,114730.0,114720.0,0.2260475]
[1758506950690,0.40807128,114730.0,114720.0,0.2229375]
[1758506951913,0.40672128,114730.0,114720.0,0.2229375]
[1758506952341,0.12436128,114730.0,114720.0,0.2229375]
[1758506952551,0.40664128,114730.0,114720.0,0.2229375]
[1758506953924,0.40664128,114730.0,114720.0,0.2208175]
[1758506954334,0.84404006,114730.0,114720.0,0.2208175]
[1758506954589,0.84717006,114730.0,114720.0,0.17433751]
[1758506956358,0.39056774,114730.0,114720.0,0.17433751]
[1758506956566,0.84709006,114730.0,114720.0,0.17433751]
[1758506957375,0.85320637,114730.0,114720.0,0.17433751]
[1758506958579,0.67888405,114730.0,114720.0,0.17433751]
[1758506959336,0.67575405,114730.0,114720.0,0.2200345]
[1758506959477,0.67571405,114730.0,114720.0,0.2200345]
[1758506960570,0.65230405,114730.0,114720.0,0.2231445]
[1758506960696,0.41263759,114730.0,114720.0,0.2231445]
[1758506960936,0.67561376,114730.0,114720.0,0.2200345]
[1758506961344,0.66949745,114730.0,114720.0,0.2200345]
[1758506962817,0.40652128,114730.0,114720.0,0.2200345]
[1758506963030,0.66949745,114730.0,114720.0,0.2200345]
[1758506963375,0.66949745,114730.0,114720.0,0.2231445]
[1758506963732,0.00454128,114730.0,114720.0,1.15491952]
[1758506963948,0.31283207,114730.0,114720.0,1.18507142]
[1758506964171,0.31283207,114730.0,114720.0,0.65911908]
[1758506964391,0.31283207,114730.0,114720.0,1.18507142]
[1758506964809,0.03075207,114730.0,114720.0,0.65911908]
[1758506965006,0.03075207,114730.0,114720.0,0.74438875]
[1758506965441,0.03075207,114730.0,114720.0,0.74538875]
[1758506965965,0.47007365,114730.0,114720.0,0.08526967]
[1758506966179,0.49261365,114730.0,114720.0,0.003]
[1758506966386,0.49261365,114730.0,114720.0,0.17733751]
[1758506966736,0.49261365,114730.0,114720.0,0.003]
[1758506967344,0.49261365,114730.0,114720.0,0.17433751]
[1758506967592,0.49661365,114730.0,114720.0,0.17433751]
[1758506967732,0.49661365,114730.0,114720.0,0.001]
[1758506968137,0.49661365,114730.0,114720.0,0.17433751]
[1758506969277,0.05942207,114730.0,114720.0,0.17433751]
[1758506969458,0.51578439,114730.0,114710.0,0.44405271]
[1758506969683,0.02709,114720.0,114710.0,0.44405271]
[1758506969880,0.30607,114720.0,114710.0,0.48529403]
[1758506970133,0.30806,114720.0,114710.0,0.48529403]
[1758506970447,0.02675207,114730.0,114720.0,0.17433751]
[1758506970664,0.02675207,114730.0,114720.0,0.28922718]
[1758506970665,0.03075207,114730.0,114720.0,0.28922718]
[1758506970866,0.02675207,114730.0,114720.0,0.28922718]
[1758506971061,0.02675207,114730.0,114720.0,0.37449685]
[1758506973627,0.02675207,114730.0,114720.0,0.35004685]
[1758506973883,0.02675207,114730.0,114720.0,0.37449685]
[1758506974113,0.02675207,114730.0,114720.0,0.75064875]
[1758506976585,0.02675207,114730.0,114720.0,1.02034875]
[1758506977364,0.02675207,114730.0,114720.0,1.30222875]
[1758506978327,0.02675207,114730.0,114720.0,1.02034875]
[1758506980357,0.02874207,114730.0,114720.0,0.87737718]
[1758506980557,0.05281207,114730.0,114720.0,0.87530718]
[1758506982240,0.02675207,114730.0,114720.0,0.90492718]
[1758506986380,0.02675207,114730.0,114720.0,0.93507908]
[1758506986585,0.00054128,114730.0,114720.0,0.93507908]
[1758506986842,0.00054128,114730.0,114720.0,1.02034875]
[1758506988576,0.02674997,114730.0,114720.0,1.02034875]
[1758506990048,0.00054128,114730.0,114720.0,1.02034875]
[1758506993403,0.00054128,114730.0,114720.0,1.30202875]
[1758506994493,0.00054128,114730.0,114720.0,1.02034875]
[1758506995405,0.00054128,114730.0,114720.0,1.30198875]
[1758506996610,0.00054128,114730.0,114720.0,1.30194875]
[1758506998165,0.02674903,114730.0,114720.0,1.30194875]
[1758506998777,0.02674903,114730.0,114720.0,1.02034875]
[1758506999225,0.02674903,114730.0,114720.0,1.30190875]
[1758507000376,0.02674903,114730.0,114720.0,1.02034875]
[1758507001098,0.02674903,114730.0,114720.0,1.30190875]
[1758507002771,0.02674903,114730.0,114720.0,1.02034875]
[1758507002999,0.02674903,114730.0,114720.0,1.30186875]
[1758507004301,0.02674903,114730.0,114720.0,1.02034875]
[1758507004525,0.02674903,114730.0,114720.0,1.30182875]
[1758507005424,0.02674903,114730.0,114720.0,1.02034875]
[1758507005641,0.00054128,114730.0,114720.0,1.30182875]
[1758507006381,0.00054128,114730.0,114720.0,1.02034875]
[1758507006599,0.00054128,114730.0,114720.0,1.30182875]
[1758507006846,0.00251128,114730.0,114720.0,0.91062908]
[1758507007064,0.00251128,114730.0,114720.0,0.90545908]
[1758507007065,0.03060128,114730.0,114720.0,0.90545908]
[1758507007284,0.29344943,114730.0,114720.0,0.90545908]
[1758507007474,0.02744128,114730.0,114720.0,0.90545908]
[1758507007731,0.29028943,114730.0,114720.0,0.90754908]
[1758507007954,0.29028943,114730.0,114720.0,0.91052908]
[1758507008198,0.02547128,114730.0,114720.0,0.99579875]
[1758507008418,0.02744128,114730.0,114720.0,0.99281875]
[1758507009042,0.02744128,114730.0,114720.0,0.99579875]
[1758507009493,0.02547128,114730.0,114720.0,0.99579875]
[1758507009704,0.02749128,114730.0,114720.0,0.99281875]
[1758507010842,0.02749128,114730.0,114720.0,1.27421875]
[1758507011075,0.05370034,114730.0,114720.0,1.27421875]
[1758507011296,0.31654849,114730.0,114720.0,1.27731875]
[1758507011537,0.05370034,114730.0,114720.0,1.27731875]
[1758507013225,0.02675034,114730.0,114720.0,1.27731875]
[1758507013452,0.00054128,114730.0,114720.0,1.30130875]